bitfinex/quotes_ETHUSD_20220308
["timestamp","ask_amount","ask_price","bid_price","bid_amount"]
[1646725505652,0.491,2546.2,2545.6,0.05761315]
[1646725505850,0.491,2546.2,2544.7,3.3322]
[1646725505851,5.8978,2546.0,2544.7,3.3322]
[1646725506051,0.3978,2545.8,2544.6,3.5]
[1646725506250,0.8888,2545.7,2544.5,0.98286]
[1646725506452,1.98277,2545.4,2544.5,0.98286]
[1646725506651,0.491,2545.5,2544.5,0.98286]
[1646725507152,0.9828771,2545.2,2544.5,0.98286]
[1646725507350,0.9828771,2545.2,2544.4,1.9656]
[1646725507351,0.00569179,2545.1,2544.4,1.9656]
[1646725507554,0.491,2545.0,2543.4,3.8795]
[1646725507759,0.491,2545.0,2543.4,3.2564]
[1646725507760,12.5378,2544.9,2543.4,3.2564]
[1646725507955,0.3978,2544.7,2543.3,3.93138]
[1646725508154,0.3978,2544.4,2543.2,0.00569616]
[1646725508355,0.9834542,2544.1,2543.0,3.2564]
[1646725508596,0.9834542,2544.1,2543.1,0.9834]
[1646725508597,0.98346,2543.9,2543.1,0.9834]
[1646725508791,2.96692,2544.0,2543.2,0.00569521]
[1646725508792,1.0,2544.0,2543.2,0.00569521]
[1646725508997,0.491,2544.3,2543.2,0.00569521]
[1646725509193,1.26928244,2543.6,2543.3,0.98233143]
[1646725509395,2.53856488,2543.6,2543.3,0.98233143]
[1646725509793,2.53856488,2543.6,2543.3,2.94872143]
[1646725509992,2.53856488,2543.6,2543.3,1.96639]
[1646725510798,2.53856488,2543.6,2543.3,5.46639]
[1646725510996,0.00129288,2544.3,2543.9,1.17076825]
[1646725511198,0.17014975,2544.7,2543.5,1.96618]
[1646725511199,0.01391563,2544.7,2543.5,6.28288]
[1646725511403,0.01262275,2544.7,2543.5,2.78288]
[1646725511615,0.01262275,2544.7,2543.5,0.8167]
[1646725512000,0.3978,2544.8,2543.5,0.8167]
[1646725512202,0.3978,2544.8,2542.9,5.46643]
[1646725512203,1.30939052,2544.0,2542.9,5.46643]
[1646725512444,1.30939052,2544.0,2542.9,1.96643]
[1646725512647,0.91159052,2544.0,2542.9,1.96643]
[1646725512846,0.91159052,2544.0,2542.8,0.13819997]
[1646725513045,0.91159052,2544.0,2543.1,0.98321]
[1646725513246,1.89488052,2544.0,2543.2,1.96647]
[1646725513447,1.8961734,2544.0,2543.2,1.96647]
[1646725513645,2.49488052,2544.0,2543.2,1.96647]
[1646725513845,2.49488052,2544.0,2542.8,0.13819997]
[1646725513846,0.491,2543.9,2542.8,0.13819997]
[1646725514048,0.8888,2543.9,2542.8,0.13819997]
[1646725514448,0.983552,2543.6,2542.8,0.13819997]
[1646725514646,0.983552,2543.6,2543.2,0.00537497]
[1646725514847,0.491,2543.7,2543.2,0.00537497]
[1646725515449,0.157579,2543.9,2543.2,0.98868497]
[1646725515650,1.47431,2544.1,2543.2,0.98331]
[1646725515849,1.47431,2544.1,2543.2,0.98850563]
[1646725516287,1.47431,2544.1,2543.2,0.00519563]
[1646725516690,2.67862085,2544.1,2543.2,0.00519563]
[1646725516891,3.66206085,2544.1,2543.2,0.0025491]
[1646725517089,4.64542605,2544.1,2543.2,0.0025491]
[1646725517295,0.98349,2543.9,2543.2,0.0025491]
[1646725517890,0.98349,2543.9,2542.9,0.3978]
[1646725518091,0.98349,2543.9,2543.2,0.0025491]
[1646725518991,1.47449,2543.9,2543.2,0.0025491]
[1646725519196,0.491,2543.9,2542.9,0.98341]
[1646725519591,0.491,2543.9,2543.2,0.00539462]
[1646725519866,1.474409,2543.9,2543.2,0.00539462]
[1646725520459,1.474409,2543.9,2542.9,0.98341]
[1646725520659,1.474409,2543.9,2543.2,0.00552744]
[1646725521061,1.474409,2543.9,2543.2,0.98893744]
[1646725521563,1.474409,2543.9,2543.2,0.98341]
[1646725521966,1.474409,2543.9,2543.2,0.98893744]
[1646725522769,1.474409,2543.9,2543.2,0.98341]
[1646725522970,1.00129288,2544.2,2543.3,3.5]
[1646725523168,3.27105,2544.4,2543.5,0.98326]
[1646725523169,0.00129288,2544.3,2543.5,0.98326]
[1646725523370,1.96785388,2544.5,2543.5,0.98326]
[1646725523586,1.966561,2544.5,2543.5,0.98326]
[1646725523787,2.266561,2544.5,2543.5,0.98326]
[1646725524087,4.12867441,2544.5,2543.5,0.98326]
[1646725524287,2.457561,2544.5,2543.5,0.98326]
[1646725524493,0.491,2544.5,2543.7,0.98315]
[1646725524694,0.02692445,2544.7,2543.7,0.98315]
[1646725525293,1.11611192,2544.6,2543.7,0.98315]
[1646725525693,0.02821802,2544.7,2543.7,0.98315]
[1646725525992,0.02692514,2544.7,2543.7,0.98315]
[1646725526192,0.9831287,2544.6,2543.7,0.98315]
[1646725526393,2.96759938,2544.8,2543.7,0.98315]
[1646725526599,0.02692514,2544.7,2543.7,0.98315]
[1646725526801,1.15802826,2544.7,2543.7,0.98315]
[1646725527450,0.98321,2544.6,2543.7,0.98315]
[1646725527852,0.02697214,2544.7,2543.7,1.96628]
[1646725528052,0.02697214,2544.7,2543.8,3.5]
[1646725528251,0.02697214,2544.7,2544.0,0.98297]
[1646725528451,0.02697214,2544.7,2544.0,3.972]
[1646725528852,0.89321085,2545.1,2544.0,3.972]
[1646725529052,0.00539454,2544.7,2544.0,4.272]
[1646725529254,0.00539454,2544.7,2544.1,0.983]
[1646725530055,0.9830428,2544.8,2544.1,0.983]
[1646725530254,1.29101085,2545.1,2544.1,0.983]
[1646725530255,0.00539459,2544.7,2544.1,0.983]
[1646725531100,0.49639459,2544.7,2544.1,0.983]
[1646725531295,0.491,2544.7,2544.1,0.983]
[1646725531493,0.49639395,2544.7,2544.1,0.983]
[1646725531896,0.49639395,2544.7,2543.7,0.98339]
[1646725531897,1.79639395,2544.7,2543.7,0.98339]
[1646725532095,13.520912,2544.6,2543.5,2.94933]
[1646725532398,1.491,2544.5,2543.7,1.96659]
[1646725532595,1.0,2544.4,2543.7,1.96659]
[1646725532795,0.491,2544.3,2543.7,1.96659]
[1646725532998,0.91545085,2544.1,2543.9,0.98332]
[1646725533196,0.491,2544.1,2543.9,0.98332]
[1646725534195,1.491,2544.5,2543.9,0.98332]
[1646725534396,0.491,2544.5,2543.9,0.98241499]
[1646725535056,0.9830997,2544.8,2543.9,0.98241499]
[1646725535251,0.0269692,2544.7,2543.9,0.98241499]
[1646725535451,0.9831564,2544.6,2543.9,0.98241499]
[1646725535652,2.21077336,2544.6,2543.9,0.98241499]
[1646725536352,1.71861696,2544.6,2543.9,0.98241499]
[1646725536952,1.4741617,2544.6,2543.9,0.98241499]
[1646725538355,1.06397664,2544.5,2543.9,0.98241499]
[1646725539392,3.4573617,2544.6,2543.9,0.98241499]
[1646725539593,0.491,2544.6,2543.9,0.98241499]
[1646725543450,1.4741508,2544.6,2543.9,0.98241499]
[1646725544051,0.98323,2544.5,2543.9,0.98241499]
[1646725544249,1.47423,2544.5,2543.9,0.98241499]
[1646725544449,2.47423,2544.5,2543.9,0.98241499]
[1646725544652,3.4574532,2544.5,2543.9,0.98241499]
[1646725544955,3.0,2544.4,2543.7,1.96659]
[1646725545154,14.526,2544.1,2543.2,0.00540266]
[1646725545355,1.0,2543.8,2543.2,0.00540266]
[1646725545555,1.4745988,2543.7,2543.2,0.00540266]
[1646725545755,1.0,2543.6,2543.1,3.93264]
[1646725545957,0.491,2543.5,2543.1,3.93264]
[1646725546190,0.491,2543.5,2543.2,0.00540304]
[1646725546391,1.47465,2543.5,2543.2,0.00540304]
[1646725546591,2.4582224,2543.5,2543.2,0.98902304]
[1646725546989,2.4582224,2543.5,2543.2,0.98362]
[1646725547189,2.4582224,2543.5,2543.2,0.00540226]
[1646725547190,1.491,2543.5,2543.2,0.00540226]
[1646725547393,1.17253195,2543.3,2543.2,0.00540226]
[1646725547594,4.63104345,2543.3,2543.2,0.00540226]
[1646725547999,4.63104345,2543.3,2542.4,2.95098]
[1646725548000,16.77104345,2543.3,2542.4,2.95098]
[1646725548194,0.98383,2543.1,2542.4,2.95098]
[1646725548393,0.491,2543.0,2542.4,2.95098]
[1646725549397,0.491,2543.0,2542.5,1.60397869]
[1646725549597,0.491,2543.0,2542.6,0.00540482]
[1646725550243,1.57162483,2543.3,2543.0,2.9515]
[1646725550244,1.9676506,2543.3,2543.0,2.9515]
[1646725550448,1.0,2543.1,2543.0,2.9515]
[1646725550650,1.491,2543.1,2543.0,2.9515]
[1646725550844,1.491,2543.1,2543.0,3.93524]
[1646725550845,0.491,2543.1,2543.0,3.93524]
[1646725551343,0.491,2543.1,2543.0,4.23524]
[1646725551948,12.631,2543.1,2543.0,4.23524]
[1646725552148,0.491,2543.1,2543.0,4.23524]
[1646725552750,1.0,2543.2,2543.0,4.23524]
[1646725552949,0.491,2543.1,2543.0,4.23524]
[1646725553153,0.491,2543.1,2543.0,3.93524]
[1646725553154,12.631,2543.1,2543.0,3.93524]
[1646725553355,16.017,2543.1,2543.0,2.07909889]
[1646725553610,16.017,2543.1,2543.0,2.04129889]
[1646725553611,14.82656751,2543.1,2543.0,2.04129889]
[1646725553802,19.19658751,2543.1,2543.0,0.93514]
[1646725554004,5.5,2543.0,2542.7,6.88661]
[1646725554203,20.96130948,2542.9,2542.2,3.93596]
[1646725554404,14.53848767,2542.7,2542.3,0.0216236]
[1646725554604,13.14,2542.4,2542.3,0.0216236]
[1646725554804,13.14,2542.4,2542.3,1.0056936]
[1646725554805,0.491,2542.4,2542.3,1.0056936]
[1646725555006,0.491,2542.4,2542.3,1.9898536]
[1646725555304,13.631,2542.4,2542.3,1.96823]
[1646725556704,13.631,2542.4,2542.3,0.42043522]
[1646725556904,13.1244,2542.3,2542.2,0.00540925]
[1646725557110,16.0014,2542.3,2542.2,9.25e-06]
[1646725557341,17.3014,2542.3,2542.2,9.25e-06]
[1646725557546,18.3014,2542.3,2542.2,9.25e-06]
[1646725557747,15.9154,2542.3,2542.1,1.9688]
[1646725557947,21.3014,2542.3,2542.1,1.9688]
[1646725558145,13.14,2542.2,2542.1,1.9688]
[1646725558348,14.631,2542.2,2542.1,1.9688]
[1646725558750,17.017,2542.2,2542.1,1.9688]
[1646725559148,17.42808907,2542.2,2542.1,1.9688]
[1646725559349,17.42808907,2542.2,2542.1,2.2688]
[1646725559546,15.04208907,2542.2,2542.1,2.2688]
[1646725559749,1.491,2542.2,2542.1,2.2688]
[1646725560048,0.491,2542.2,2542.1,2.2688]
[1646725560246,0.741,2542.2,2542.1,2.2688]
[1646725561102,17.64,2542.1,2540.6,0.3932]
[1646725561300,12.15227328,2541.8,2540.6,0.3932]
[1646725561504,12.14,2541.6,2541.2,1.96892]
[1646725561706,12.631,2541.5,2541.3,1.96907]
[1646725561905,0.491,2541.4,2541.3,1.96907]
[1646725562202,1.491,2541.4,2541.3,0.98446]
[1646725562403,14.61564,2541.4,2541.2,3.93816]
[1646725562803,1.0,2541.3,2541.2,3.93816]
[1646725563005,13.631,2541.3,2541.1,1.9692]
[1646725563204,13.631,2541.3,2540.2,3.93844]
[1646725563205,15.64,2541.2,2540.2,0.1967]
[1646725563409,13.1248519,2541.0,2540.4,0.98486]
[1646725563605,2.46056,2540.9,2540.5,0.98473]
[1646725563806,0.491,2540.9,2540.5,1.18143]
[1646725564008,0.491,2540.9,2540.8,1.96954]
[1646725564208,1.0,2541.4,2540.8,1.96954]
[1646725564209,0.491,2541.2,2540.9,0.87451502]
[1646725564407,3.5,2541.6,2540.9,0.87451502]
[1646725564408,1.4754,2541.3,2540.9,0.87451502]
[1646725564709,2.46028,2541.2,2540.9,1.85881502]
[1646725564958,0.491,2541.1,2540.9,2.15881502]
[1646725565156,1.0,2541.0,2540.9,1.85881502]
[1646725565355,1.491,2541.0,2540.9,0.87451502]
[1646725565859,12.14,2540.8,2540.6,1.99233096]
[1646725566060,6.00384779,2541.0,2540.6,3.096e-05]
[1646725566061,16.131,2540.7,2540.6,3.096e-05]
[1646725566256,16.131,2540.7,2540.2,2.95439]
[1646725566557,12.14,2540.3,2540.2,1.96995]
[1646725566759,17.131,2540.3,2539.2,0.1968]
[1646725566956,17.131,2540.3,2539.2,3.15226]
[1646725566957,0.25,2539.5,2539.2,3.15226]
[1646725567156,0.491,2539.4,2539.2,4.1374]
[1646725567657,0.491,2539.4,2539.2,3.9406]
[1646725567856,1.47619,2539.4,2539.2,3.9406]
[1646725568803,1.47619,2539.4,2539.2,0.98514]
[1646725569603,1.47619,2539.4,2539.3,0.11]
[1646725570208,0.491,2539.4,2539.3,0.11]
[1646725572748,0.491,2539.4,2539.3,0.105696]
[1646725576404,0.491,2539.4,2539.2,0.11136715]
[1646725576405,12.931,2539.4,2539.2,0.11136715]
[1646725576601,0.9854,2539.3,2539.2,0.11136715]
[1646725576803,1.7764,2539.3,2539.2,0.11136715]
[1646725577003,1.7764,2539.3,2539.2,0.105696]
[1646725577402,2.7764,2539.3,2539.2,0.105696]
[1646725577803,3.7764,2539.3,2539.2,0.105696]
[1646725578006,2.7764,2539.3,2539.2,0.105696]
[1646725578203,3.7764,2539.3,2539.2,0.105696]
[1646725579204,18.3024,2539.3,2539.2,9.6e-05]
[1646725579406,3.7764,2539.3,2539.1,0.01]
[1646725579861,1.0,2539.2,2539.1,0.01568564]
[1646725580250,1.491,2539.2,2539.1,0.01568564]
[1646725580649,1.491,2539.2,2539.1,0.01]
[1646725581460,4.991,2539.2,2539.1,0.01]
[1646725581650,1.491,2539.2,2539.1,0.01]
[1646725581855,0.491,2539.2,2539.1,0.01]
[1646725584203,5.68995207,2539.4,2539.2,9.6e-05]
[1646725584404,0.491,2539.3,2539.2,9.6e-05]
[1646725585004,1.4764,2539.3,2539.2,9.6e-05]
[1646725586508,1.4764,2539.3,2539.1,0.01558975]
[1646725586705,1.4764,2539.3,2539.1,0.010096]
[1646725586906,1.4764,2539.3,2539.1,0.01548696]
[1646725587546,1.4764,2539.3,2539.2,9.6e-05]
[1646725587746,1.25,2539.5,2539.2,1.970066]
[1646725587946,0.25,2539.5,2539.3,9.6e-05]
[1646725589448,0.25,2539.5,2539.3,0.00548682]
[1646725589949,0.491,2540.2,2539.6,9.6e-05]
[1646725590153,0.49638811,2540.5,2539.7,9.6e-05]
[1646725590352,0.20568254,2540.5,2539.7,9.6e-05]
[1646725590548,0.00538139,2540.5,2539.7,9.6e-05]
[1646725591201,0.00538139,2540.5,2540.3,9.6e-05]
[1646725591608,0.491,2540.7,2540.3,9.6e-05]
[1646725591802,0.00538219,2540.5,2540.3,9.6e-05]
[1646725592405,0.00538219,2540.5,2540.4,1.969466]
[1646725592606,1.491,2541.0,2540.4,1.969466]
[1646725592807,0.491,2541.0,2540.4,1.969466]
[1646725593007,0.491,2541.0,2540.6,9.6e-05]
[1646725593408,12.14,2540.9,2540.6,0.984686]
[1646725593608,0.491,2540.8,2540.6,0.984686]
[1646725594007,0.441,2540.8,2540.6,0.984686]
[1646725594861,1.4257,2540.8,2540.6,0.984686]
[1646725595249,1.43108269,2540.8,2540.6,0.984686]
[1646725596253,1.4257,2540.8,2540.6,0.984686]
[1646725596653,1.43108269,2540.8,2540.6,0.984686]
[1646725596857,0.44638269,2540.8,2540.6,0.984686]
[1646725597264,0.491,2541.2,2540.7,9.6e-05]
[1646725597458,1.491,2541.5,2540.9,9.6e-05]
[1646725597658,0.491,2541.5,2541.0,9.6e-05]
[1646725598057,0.98447,2541.3,2541.0,9.6e-05]
[1646725598695,0.98447,2541.3,2541.2,0.125647]
[1646725598895,1.47547,2541.3,2541.2,0.125647]
[1646725599294,1.47547,2541.3,2541.2,0.125743]
[1646725599598,0.98439,2541.5,2541.2,0.125743]
[1646725599795,0.98439,2541.5,2541.3,9.6e-05]
[1646725599998,0.98439,2541.5,2541.3,0.984476]
[1646725600200,0.00290225,2541.4,2541.3,9.6e-05]
[1646725601009,13.12439,2541.5,2541.3,9.6e-05]
[1646725601203,0.491,2541.4,2541.3,1.969356]
[1646725601402,1.491,2541.4,2541.3,1.969356]
[1646725601804,3.0766,2541.2,2540.5,3.93797]
[1646725602003,13.36061574,2540.6,2539.9,4.33252]
[1646725602208,0.491,2540.5,2539.9,3.93862]
[1646725602456,1.0,2540.2,2540.1,3.93888]
[1646725602655,1.491,2540.2,2540.1,3.93888]
[1646725604057,13.631,2540.2,2540.0,0.98487]
[1646725604256,14.83947133,2540.2,2540.0,0.98487]
[1646725604468,1.0,2540.1,2540.0,0.98487]
[1646725604657,1.491,2540.1,2540.0,0.98487]
[1646725605059,1.491,2540.1,2540.0,0.9905555]
[1646725605859,1.491,2540.1,2540.0,0.98487]
[1646725606900,0.491,2540.1,2540.0,0.98487]
[1646725614299,0.791,2540.1,2540.0,0.98487]
[1646725614694,0.791,2540.1,2539.9,1.97542731]
[1646725614902,1.7761779,2540.1,2539.9,2.27542731]
[1646725615098,1.0,2540.0,2539.9,1.97542731]
[1646725615296,1.491,2540.0,2539.9,1.97542731]
[1646725615495,1.491,2540.0,2539.9,1.97]
[1646725615496,0.491,2540.0,2539.9,1.97]
[1646725616099,0.491,2540.0,2539.8,3.26077741]
[1646725616799,0.491,2540.0,2539.8,3.25535]
[1646725617000,0.491,2540.0,2539.8,3.26073174]
[1646725618054,0.491,2540.0,2539.8,3.25535]
[1646725618254,0.491,2540.0,2539.8,3.26073174]
[1646725619156,0.491,2540.0,2539.8,3.25535]
[1646725619356,0.491,2540.0,2539.8,3.26063116]
[1646725619758,0.985,2540.1,2539.8,3.26063116]
[1646725619959,0.985,2540.1,2540.0,0.89984527]
[1646725620158,1.476,2540.1,2540.0,0.89984527]
[1646725620957,2.476,2540.1,2540.0,0.89984527]
[1646725622906,2.776,2540.1,2540.0,0.89984527]
[1646725623303,3.776,2540.1,2540.0,0.89984527]
[1646725623705,2.776,2540.1,2540.0,0.89984527]
[1646725623906,14.616,2540.1,2540.0,0.89984527]
[1646725624105,1.476,2540.1,2540.0,0.89984527]
[1646725624505,0.985,2540.1,2540.0,0.89984527]
[1646725626248,1.476,2540.1,2540.0,0.89984527]
[1646725626849,2.476,2540.1,2540.0,0.89984527]
[1646725628898,14.616,2540.1,2540.0,0.89984527]
[1646725629298,14.916,2540.1,2540.0,0.89984527]
[1646725631905,2.776,2540.1,2540.0,0.89984527]
[1646725632556,14.916,2540.1,2540.0,0.89984527]
[1646725632754,14.916,2540.1,2539.9,1.11509967]
[1646725632755,19.51061,2540.0,2539.9,1.11509967]
[1646725632954,23.2389264,2540.0,2539.9,1.11509967]
[1646725633158,17.64,2539.9,2539.5,3.96191174]
[1646725633357,12.631,2539.8,2539.5,0.02040174]
[1646725633556,12.631,2539.8,2539.1,0.01]
[1646725633557,1.16887329,2539.7,2539.1,0.01]
[1646725633756,13.631,2539.6,2539.1,0.01]
[1646725634056,13.12551,2539.5,2539.3,3.94178]
[1646725634256,0.491,2539.4,2539.3,3.94178]
[1646725634457,0.491,2539.4,2539.3,1.97084]
[1646725634657,1.491,2539.4,2539.3,1.97084]
[1646725634857,1.648859,2539.4,2539.3,1.97084]
[1646725635258,1.491,2539.4,2539.3,2.27084]
[1646725636106,0.491,2539.4,2539.3,2.27084]
[1646725637295,0.491,2539.4,2539.3,0.3]
[1646725637699,0.491,2539.4,2539.2,1.9762583]
[1646725638306,0.491,2539.4,2539.2,1.97086]
[1646725638701,0.791,2539.4,2539.2,1.97632858]
[1646725638901,1.0,2539.3,2539.2,1.97632858]
[1646725639103,1.491,2539.3,2539.2,1.97632858]
[1646725639501,1.491,2539.3,2539.2,1.97086]
[1646725639703,2.9710129,2539.5,2539.2,1.97086]
[1646725639947,0.491,2539.4,2539.2,1.97086]
[1646725641046,0.491,2539.4,2539.2,1.97632858]
[1646725642046,0.791,2539.4,2539.2,1.97086]
[1646725642247,0.491,2539.4,2539.2,1.97623013]
[1646725643256,0.491,2539.4,2539.2,1.97086]
[1646725643454,0.491,2539.4,2539.2,1.97623013]
[1646725644500,0.491,2539.4,2539.2,1.97086]
[1646725644697,0.491,2539.4,2539.2,1.97623013]
[1646725645098,1.0,2539.3,2539.2,1.97623013]
[1646725645298,0.3,2539.4,2539.2,1.97623013]
[1646725645501,0.491,2539.3,2539.2,1.97623013]
[1646725645699,1.491,2539.3,2539.2,0.98541]
[1646725646900,1.491,2539.3,2539.1,1.98078]
[1646725647100,3.4618579,2539.3,2539.2,0.90643986]
[1646725647349,2.7618579,2539.3,2539.2,0.90643986]
[1646725647553,2.77644,2539.3,2539.2,0.90643986]
[1646725648354,14.91644,2539.3,2539.2,0.90643986]
[1646725648757,5.5,2539.2,2539.1,0.31537271]
[1646725648956,5.991,2539.2,2539.1,0.01537271]
[1646725649156,6.991,2539.2,2539.1,0.01]
[1646725649355,14.631,2539.2,2539.1,0.01]
[1646725649860,2.491,2539.2,2539.1,0.01]
[1646725650255,1.491,2539.2,2539.1,0.01]
[1646725650854,13.631,2539.2,2539.1,0.01]
[1646725651299,14.631,2539.2,2539.1,0.01]
[1646725651495,1.491,2539.2,2539.1,0.01]
[1646725651897,0.491,2539.2,2539.1,0.01]
[1646725655349,1.791,2539.2,2539.1,0.01]
[1646725655850,0.791,2539.2,2539.1,0.01]
[1646725656051,1.791,2539.2,2539.1,0.01]
[1646725657052,13.931,2539.2,2539.1,0.01]
[1646725657252,17.431,2539.2,2539.1,0.01]
[1646725658055,18.55438528,2539.2,2539.1,0.01]
[1646725658255,18.82086618,2539.2,2539.1,0.01]
[1646725658903,18.55438528,2539.2,2539.1,0.01]
[1646725659301,17.431,2539.2,2539.1,0.01]
[1646725659502,13.931,2539.2,2539.1,0.01]
[1646725659805,1.791,2539.2,2539.1,0.01]
[1646725661202,1.491,2539.2,2539.1,0.01]
[1646725663250,1.491,2539.2,2539.1,0.00785]
[1646725663451,1.791,2539.2,2539.1,0.00785]
[1646725665251,1.491,2539.2,2539.1,0.00785]
[1646725666119,0.491,2539.2,2539.1,0.00785]
[1646725666310,1.9708182,2539.3,2539.1,0.00785]
[1646725666311,3.66449669,2539.4,2539.1,0.00785]
[1646725666511,1.2952933,2540.0,2539.2,3.48522]
[1646725666713,0.20551714,2540.1,2539.2,3.48522]
[1646725666714,0.20551714,2540.1,2539.5,0.87010197]
[1646725666917,0.49639553,2540.5,2539.5,1.26790197]
[1646725667112,0.00539553,2540.5,2539.5,1.26790197]
[1646725667315,1.02765029,2540.6,2539.5,1.26790197]
[1646725667515,2.3073111,2540.9,2539.7,0.3978]
[1646725667713,0.491,2540.9,2540.1,0.3978]
[1646725668112,5.4136111,2541.3,2540.1,0.3978]
[1646725668314,0.491,2541.3,2540.1,0.3978]
[1646725668614,1.01623176,2541.2,2540.1,1.43886728]
[1646725668812,0.00545874,2540.8,2540.1,0.3978]
[1646725669011,0.00545874,2540.8,2540.3,0.3978]
[1646725669214,1.0,2541.1,2540.3,0.3978]
[1646725670051,0.98457,2541.0,2540.4,1.96904]
[1646725670253,0.98457,2541.0,2540.5,1.96945]
[1646725670653,1.0,2540.9,2540.5,1.96945]
[1646725671356,0.98475,2540.8,2540.5,1.96945]
[1646725671754,3.5,2540.7,2540.5,2.95422]
[1646725671957,0.491,2540.6,2540.5,1.96945]
[1646725672158,1.491,2540.6,2540.5,1.96437216]
[1646725672359,1.491,2540.6,2540.4,0.98452]
[1646725672556,1.08318267,2540.5,2540.4,0.98452]
[1646725672756,5.07418267,2540.5,2540.3,1.96965]
[1646725672958,2.57418267,2540.5,2540.3,1.96965]
[1646725673156,1.0,2540.4,2540.3,1.96965]
[1646725673357,4.5,2540.4,2540.1,1.97001]
[1646725673621,18.11614,2540.4,2540.3,0.00276122]
[1646725673820,18.5404469,2540.4,2540.3,0.00276122]
[1646725674022,6.4004469,2540.4,2540.3,0.00276122]
[1646725674224,6.97614,2540.4,2540.3,0.00276122]
[1646725674424,6.97614,2540.4,2540.1,2.95506]
[1646725674629,7.9611759,2540.4,2540.1,2.95506]
[1646725674827,7.9611759,2540.4,2540.2,0.00276127]
[1646725674828,0.3,2540.3,2540.2,0.00276127]
[1646725675027,4.291,2540.3,2540.2,0.00276127]
[1646725675229,5.291,2540.3,2540.2,0.00276127]
[1646725675429,17.431,2540.3,2540.2,0.00276127]
[1646725675630,17.431,2540.3,2540.0,4.24013]
[1646725675631,20.817,2540.3,2540.0,2.27003]
[1646725675828,0.98509,2540.2,2540.0,1.97003]
[1646725676028,0.98509,2540.2,2540.1,0.00276138]
[1646725676029,2.9701925,2540.2,2540.1,0.00276138]
[1646725676228,2.4611925,2540.2,2540.1,0.00276138]
[1646725676628,3.4611925,2540.2,2540.1,0.00276138]
[1646725676828,3.4611925,2540.2,2540.0,1.97003]
[1646725677028,3.4611925,2540.2,2540.0,2.95512]
[1646725677232,1.0,2540.1,2540.0,3.25788137]
[1646725677453,1.491,2540.1,2540.0,3.25788137]
[1646725678055,1.491,2540.1,2540.0,3.25512]
[1646725679655,1.9701925,2540.2,2540.0,3.25512]
[1646725679656,1.98509,2540.2,2540.0,3.25512]
[1646725679858,1.0,2540.2,2540.0,3.25512]
[1646725680056,0.98481,2540.4,2540.0,3.25512]
[1646725680253,0.98481,2540.4,2540.1,1.96962]
[1646725680653,0.98481,2540.4,2540.2,3.5]
[1646725680854,7.158692,2541.1,2540.2,3.5]
[1646725680855,1.0,2540.7,2540.2,3.5]
[1646725681099,2.97507628,2540.9,2540.1,2.27526817]
[1646725681299,2.97507628,2540.9,2540.2,0.98468]
[1646725681701,4.04548997,2540.9,2540.2,0.98468]
[1646725681904,2.96965,2540.7,2540.3,1.97229308]
[1646725682106,2.96965,2540.7,2540.4,0.98488]
[1646725682107,0.491,2540.6,2540.4,0.98488]
[1646725682308,12.631,2540.6,2540.4,0.98488]
[1646725682508,1.0,2540.5,2540.4,1.96985]
[1646725682706,1.491,2540.5,2540.4,1.96985]
[1646725683107,1.491,2540.5,2540.4,0.98488]
[1646725683408,1.491,2540.5,2540.0,1.9702]
[1646725683409,5.68757358,2540.3,2540.0,1.9702]
[1646725683610,15.5112,2540.2,2540.0,1.9702]
[1646725683808,0.491,2540.1,2540.0,1.9702]
[1646725684010,1.491,2540.1,2540.0,1.9702]
[1646725685055,13.631,2540.1,2539.8,1.9702]
[1646725685253,13.12525,2540.0,2539.8,1.9702]
[1646725685552,12.631,2539.9,2539.8,1.9702]
[1646725685754,13.631,2539.9,2539.8,1.9702]
[1646725686357,17.017,2539.9,2539.6,3.94091]
[1646725686557,17.017,2539.9,2539.1,0.00785]
[1646725686558,12.14,2539.7,2539.1,0.00785]
[1646725686758,0.491,2539.6,2539.3,0.02060215]
[1646725687358,2.09852325,2539.4,2539.3,0.02060215]
[1646725687562,2.58952325,2539.4,2539.3,0.02060215]
[1646725687760,2.58952325,2539.4,2539.3,1.9708]
[1646725688258,2.88952325,2539.4,2539.3,1.9708]
[1646725689205,3.04739425,2539.4,2539.3,1.9708]
[1646725689409,13.12559,2539.3,2539.2,0.00516472]
[1646725689607,14.61659,2539.3,2539.2,0.00516472]
[1646725689808,4.77659,2539.3,2539.2,0.00516472]
[1646725690212,5.7621117,2539.3,2539.1,1.97882]
[1646725690510,1.0,2539.2,2539.1,1.98398482]
[1646725690711,1.491,2539.2,2539.1,1.98398482]
[1646725691111,0.491,2539.2,2539.1,1.98398482]
[1646725691513,0.491,2539.2,2539.1,1.97882]
[1646725692757,1.791,2539.2,2539.1,1.97882]
[1646725693155,0.791,2539.2,2539.1,1.97882]
[1646725693354,1.491,2539.2,2539.1,1.97882]
[1646725694358,0.491,2539.2,2539.1,1.97882]
[1646725694756,0.98559,2539.3,2539.1,1.97882]
[1646725695757,4.00859682,2539.7,2539.1,1.97882]
[1646725695955,4.49959682,2539.7,2539.1,2.96403]
[1646725696206,4.49959682,2539.7,2539.2,0.98522]
[1646725696207,3.46136,2539.7,2539.2,0.98522]
[1646725696612,3.46136,2539.7,2539.3,0.00534509]
[1646725696811,1.0,2539.5,2539.3,1.97583509]
[1646725697212,1.9852,2539.5,2539.3,1.97583509]
[1646725697513,1.9852,2539.5,2539.3,1.97049]
[1646725697914,1.491,2539.4,2539.3,1.97049]
[1646725700955,1.648855,2539.4,2539.3,1.97049]